bitfinex-derivatives/quotes_BTCF0:USTF0_20241213
["timestamp","ask_amount","ask_price","bid_price","bid_amount"]
[1734066970564,0.26363315,100120.0,100110.0,1.36340836]
[1734066970869,0.20073443,100120.0,100110.0,1.36340836]
[1734066971169,0.26363315,100120.0,100110.0,1.36340836]
[1734066971365,0.20073443,100120.0,100110.0,1.36340836]
[1734066971565,0.26363315,100120.0,100110.0,1.36340836]
[1734066972063,0.26363315,100120.0,100110.0,1.10825592]
[1734066973574,0.27060489,100120.0,100110.0,1.36301331]
[1734066973876,0.27060489,100120.0,100110.0,1.12467066]
[1734066974172,0.27060489,100120.0,100110.0,1.48200806]
[1734066976673,0.27060489,100120.0,100110.0,1.48964745]
[1734066979382,0.18368035,100120.0,100110.0,1.42635378]
[1734066979678,0.38333439,100120.0,100110.0,1.06879409]
[1734066981880,0.38333439,100120.0,100110.0,1.0611547]
[1734066983580,0.38333439,100120.0,100110.0,1.06119445]
[1734066985574,0.38333439,100120.0,100110.0,1.06124735]
[1734066988185,0.38333439,100120.0,100110.0,1.06127638]
[1734066991275,0.32043567,100120.0,100110.0,1.06127638]
[1734066991475,0.38333439,100120.0,100110.0,1.06127638]
[1734066995077,0.32043567,100120.0,100110.0,1.06127638]
[1734066995278,0.38333439,100120.0,100110.0,1.06127638]
[1734066996983,0.38333439,100120.0,100110.0,1.41883607]
[1734066997185,0.38333439,100120.0,100110.0,1.41766302]
[1734066997700,0.32043567,100120.0,100110.0,1.41766302]
[1734066997878,0.38333439,100120.0,100110.0,1.41766302]
[1734066998193,0.38333439,100120.0,100110.0,1.06010333]
[1734066998986,0.38333439,100120.0,100110.0,1.0677309]
[1734067000277,0.27050867,100120.0,100110.0,1.13062962]
[1734067000476,0.27050867,100120.0,100110.0,1.48818931]
[1734067000678,0.21064183,100120.0,100110.0,1.49060466]
[1734067001486,0.21064183,100120.0,100110.0,1.48297709]
[1734067002083,0.21064183,100120.0,100110.0,1.490613]
[1734067004601,0.21064183,100120.0,100110.0,1.12217709]
[1734067004781,0.21064183,100120.0,100110.0,1.85144031]
[1734067005383,0.21064183,100120.0,100110.0,1.85017508]
[1734067007291,0.21064183,100120.0,100110.0,1.55105855]
[1734067007490,0.21064183,100120.0,100110.0,1.84901508]
[1734067007687,0.21064183,100120.0,100110.0,1.84135186]
[1734067007891,0.21064183,100120.0,100110.0,1.84905723]
[1734067008290,0.21064183,100120.0,100110.0,1.84903296]
[1734067010793,0.21064183,100120.0,100110.0,1.84132759]
[1734067011094,0.21064183,100120.0,100110.0,1.84900186]
[1734067011300,0.21064183,100120.0,100110.0,1.84132759]
[1734067011598,0.21064183,100120.0,100110.0,1.84900201]
[1734067015298,0.21064183,100120.0,100110.0,1.84664501]
[1734067015600,0.21064183,100120.0,100110.0,1.84662044]
[1734067017301,0.21064183,100120.0,100110.0,1.83894602]
[1734067017502,0.21064183,100120.0,100110.0,1.84658028]
[1734067017702,0.21064183,100120.0,100110.0,1.84658044]
[1734067019098,0.12078163,100120.0,100110.0,1.48902075]
[1734067019804,0.12078163,100120.0,100110.0,1.48933045]
[1734067020707,0.12078163,100120.0,100110.0,1.48932175]
[1734067020904,0.12078163,100120.0,100110.0,1.48169603]
[1734067021107,0.12078163,100120.0,100110.0,1.48932835]
[1734067025212,0.21061223,100120.0,100110.0,1.54898035]
[1734067025707,0.21061223,100120.0,100110.0,1.54134803]
[1734067026011,0.21061223,100120.0,100110.0,1.54898817]
[1734067027417,0.21061223,100120.0,100110.0,1.54913435]
[1734067028215,0.21061223,100120.0,100110.0,1.84827538]
[1734067028403,0.12078163,100120.0,100110.0,1.54913435]
[1734067028909,0.12078163,100120.0,100110.0,1.54912638]
[1734067028910,0.21063341,100120.0,100110.0,1.54912638]
[1734067029113,0.21063341,100120.0,100110.0,1.91115747]
[1734067029308,0.09085178,100120.0,100110.0,1.91126876]
[1734067029504,0.09085178,100120.0,100110.0,1.55359778]
[1734067029701,0.26950867,100130.0,100120.0,0.049927]
[1734067029702,0.11978163,100130.0,100120.0,0.049927]
[1734067030025,0.11978163,100130.0,100120.0,1.84257036]
[1734067030206,0.11978163,100130.0,100120.0,1.54453204]
[1734067030406,0.11978163,100130.0,100120.0,1.53993733]
[1734067030813,0.11978163,100130.0,100120.0,1.84255794]
[1734067031013,0.12178163,100130.0,100120.0,1.84355794]
[1734067031326,0.12778163,100130.0,100120.0,1.54093733]
[1734067031906,0.12778163,100130.0,100120.0,1.54374238]
[1734067033106,0.12778163,100130.0,100120.0,1.54735356]
[1734067033308,0.12778163,100130.0,100120.0,1.54361351]
[1734067033521,0.008,100130.0,100120.0,1.54726502]
[1734067033709,0.008,100130.0,100120.0,1.57786502]
[1734067034010,0.008,100130.0,100120.0,1.27631144]
[1734067034213,0.008,100130.0,100120.0,1.577161]
[1734067037018,0.008,100130.0,100120.0,1.5767085]
[1734067038224,0.008,100130.0,100120.0,1.58662097]
[1734067038426,0.008,100130.0,100120.0,1.5789888]
[1734067038726,0.008,100130.0,100120.0,1.58659123]
[1734067041324,0.008,100130.0,100120.0,1.60615814]
[1734067041522,0.008,100130.0,100120.0,1.60617939]
[1734067043528,0.008,100130.0,100120.0,1.57557939]
[1734067044029,0.008,100130.0,100120.0,1.74726181]
[1734067044218,0.008,100130.0,100120.0,1.44641225]
[1734067044417,0.008,100130.0,100120.0,1.57220969]
[1734067044617,0.008,100130.0,100120.0,1.56458601]
[1734067044916,0.008,100130.0,100120.0,1.57221381]
[1734067045619,0.008,100130.0,100120.0,1.57046237]
[1734067045820,0.008,100130.0,100120.0,1.42509802]
[1734067046022,0.008,100130.0,100120.0,1.55089546]
[1734067047329,0.008,100130.0,100120.0,1.85149269]
[1734067047921,0.008,100130.0,100120.0,1.85146053]
[1734067048731,0.008,100130.0,100120.0,1.78856181]
[1734067049234,0.008,100130.0,100120.0,1.49108195]
[1734067050230,0.008,100130.0,100120.0,1.48779311]
[1734067051122,0.008,100130.0,100120.0,1.48784601]
[1734067052426,0.008,100130.0,100120.0,1.25325227]
[1734067053224,0.008,100130.0,100120.0,1.48789281]
[1734067054326,0.008,100130.0,100120.0,1.19035297]
[1734067054833,0.008,100130.0,100120.0,1.25325169]
[1734067056328,0.008,100130.0,100120.0,1.49027159]
[1734067057226,0.008,100130.0,100120.0,1.19035297]
[1734067057423,0.008,100130.0,100120.0,1.19035454]
[1734067057830,0.008,100130.0,100120.0,1.19035462]
[1734067059339,0.008,100130.0,100120.0,1.19040373]
[1734067059539,0.008,100130.0,100120.0,1.25330245]
[1734067060438,0.008,100130.0,100120.0,1.55357973]
[1734067060743,0.008,100130.0,100120.0,1.55357769]
[1734067061233,0.008,100130.0,100120.0,1.25330041]
[1734067061433,0.008,100130.0,100120.0,1.55353395]
[1734067061630,0.008,100130.0,100120.0,1.25330041]
[1734067062337,0.008,100130.0,100120.0,1.55366615]
[1734067063141,0.008,100130.0,100120.0,1.28520041]
[1734067063436,0.12778163,100130.0,100120.0,1.28520041]
[1734067063639,0.008,100130.0,100120.0,1.58544466]
[1734067063839,0.008,100130.0,100120.0,1.57857802]
[1734067064146,0.008,100130.0,100120.0,1.5862198]
[1734067066939,0.008,100130.0,100120.0,1.57857802]
[1734067067139,0.008,100130.0,100120.0,1.58621743]
[1734067067340,0.008,100130.0,100120.0,1.58621802]
[1734067069343,0.008,100130.0,100120.0,1.22902454]
[1734067069742,0.008,100130.0,100120.0,1.16612582]
[1734067070049,0.008,100130.0,100120.0,1.1032271]
[1734067070341,0.008,100130.0,100120.0,1.16612582]
[1734067070542,0.008,100130.0,100120.0,1.52375778]
[1734067072942,0.008,100130.0,100120.0,1.5241012]
[1734067073344,0.008,100130.0,100120.0,1.52409682]
[1734067073538,0.008,100130.0,100120.0,1.58699554]
[1734067073746,0.008,100130.0,100120.0,1.4611981]
[1734067074139,0.008,100130.0,100120.0,1.52409682]
[1734067074342,0.008,100130.0,100120.0,1.5164612]
[1734067074740,0.008,100130.0,100120.0,1.53691978]
[1734067076841,0.008,100130.0,100120.0,1.5998185]
[1734067077756,0.008,100130.0,100120.0,1.53691978]
[1734067078054,0.008,100130.0,100120.0,1.5998185]
[1734067079253,0.008,100130.0,100120.0,1.5679185]
[1734067079659,0.008,100130.0,100120.0,1.21028654]
[1734067085062,0.008,100130.0,100120.0,1.20966799]
[1734067085966,0.008,100130.0,100120.0,2.08932905]
[1734067087462,0.008,100130.0,100120.0,2.09693715]
[1734067089562,0.008,100130.0,100120.0,2.09529154]
[1734067090565,0.008,100130.0,100120.0,1.7469935]
[1734067091067,0.008,100130.0,100120.0,1.32984053]
[1734067091255,0.008,100130.0,100120.0,1.21626554]
[1734067091455,0.008,100130.0,100120.0,1.21627544]
[1734067091767,0.008,100130.0,100120.0,1.090478]
[1734067092162,0.008,100130.0,100120.0,1.21627544]
[1734067092462,0.008,100130.0,100120.0,1.20865744]
[1734067093959,0.008,100130.0,100120.0,1.20882985]
[1734067094154,0.008,100130.0,100120.0,1.20884466]
[1734067096979,0.008,100130.0,100120.0,1.14594594]
[1734067098567,0.008,100130.0,100120.0,1.08351998]
[1734067098882,0.008,100130.0,100120.0,1.1464187]
[1734067099067,0.008,100130.0,100120.0,1.0630614]
[1734067099263,0.12778163,100130.0,100120.0,1.48377269]
[1734067099466,0.12778163,100130.0,100120.0,1.45137269]
[1734067103365,0.12778163,100130.0,100120.0,1.15061733]
[1734067104375,0.12778163,100130.0,100120.0,1.45266295]
[1734067107676,0.12778163,100130.0,100120.0,1.45315437]
[1734067108471,0.12778163,100130.0,100120.0,1.51605309]
[1734067108665,0.12778163,100130.0,100120.0,1.45315437]
[1734067108869,0.12778163,100130.0,100120.0,1.51605309]
[1734067109076,0.12778163,100130.0,100120.0,1.45315437]
[1734067109474,0.12778163,100130.0,100120.0,1.46076834]
[1734067112183,0.12778163,100130.0,100120.0,1.45867769]
[1734067113376,0.12778163,100130.0,100120.0,1.45106372]
[1734067113571,0.12778163,100130.0,100120.0,1.49078549]
[1734067116880,0.12778163,100130.0,100120.0,1.48799468]
[1734067122281,0.12778163,100130.0,100120.0,1.19041057]
[1734067123590,0.12778163,100130.0,100120.0,1.55121057]
[1734067123783,0.12778163,100130.0,100120.0,0.82961057]
[1734067123988,0.12778163,100130.0,100120.0,1.55121057]
[1734067124488,0.137856,100130.0,100120.0,1.55121057]
[1734067124880,0.137856,100130.0,100120.0,0.82961057]
[1734067125281,0.137856,100130.0,100120.0,1.85135746]
[1734067126175,0.137856,100130.0,100120.0,1.84371043]
[1734067126374,0.137856,100130.0,100120.0,1.85136427]
[1734067126579,0.20075472,100130.0,100120.0,1.47840619]
[1734067126777,0.45035691,100130.0,100120.0,1.74441071]
[1734067126987,0.45035691,100130.0,100120.0,1.38700841]
[1734067127385,0.33057528,100130.0,100120.0,1.62546154]
[1734067127586,0.38049728,100130.0,100120.0,1.6178077]
[1734067128292,0.38049728,100130.0,100120.0,1.36578603]
[1734067128489,0.38049728,100130.0,100120.0,1.06768151]
[1734067129491,0.50023507,100130.0,100120.0,1.24647619]
[1734067130079,0.50023507,100130.0,100120.0,1.06768151]
[1734067130080,0.38049728,100130.0,100120.0,1.06768151]
[1734067131385,0.38049728,100130.0,100120.0,1.01098013]
[1734067132483,0.50019603,100130.0,100120.0,1.01098013]
[1734067134984,0.43729731,100130.0,100120.0,1.01098013]
[1734067135185,0.50019603,100130.0,100120.0,1.24643323]
[1734067138991,0.56309475,100130.0,100120.0,1.24643323]
[1734067143908,0.56309475,100130.0,100120.0,0.88563323]
[1734067148991,0.56309475,100130.0,100120.0,0.52483323]
[1734067149186,0.56309475,100130.0,100120.0,0.88563323]
[1734067154400,0.443396,100130.0,100120.0,1.00503171]
[1734067154992,0.443396,100130.0,100120.0,0.95510471]
[1734067155191,0.68596717,100130.0,100120.0,0.83585212]
[1734067155393,0.83414141,100130.0,100120.0,0.17985193]
[1734067155907,0.65446896,100130.0,100120.0,0.17985193]
[1734067156501,0.65446896,100130.0,100120.0,0.001]
[1734067156703,0.86408682,100130.0,100120.0,0.001]
[1734067157807,0.65446896,100130.0,100120.0,0.001]
[1734067158392,0.95446896,100130.0,100120.0,0.001]
[1734067158608,0.98516896,100130.0,100120.0,0.001]
[1734067158917,0.89478682,100130.0,100120.0,0.001]
[1734067159105,0.049927,100120.0,100110.0,0.17885193]
[1734067159411,0.049932,100110.0,100100.0,0.77810506]
[1734067159606,0.44507685,100110.0,100100.0,0.83487019]
[1734067160111,0.44503625,100110.0,100100.0,0.53965193]
[1734067160299,0.54493136,100110.0,100100.0,0.53965193]
[1734067161197,0.54493136,100110.0,100100.0,0.54865193]
[1734067161198,0.54593136,100110.0,100100.0,0.54865193]
[1734067162313,0.54593136,100110.0,100100.0,0.55165193]
[1734067163302,0.4859755,100110.0,100100.0,0.55165193]
[1734067163605,0.39629391,100110.0,100100.0,0.55165193]
[1734067163804,0.39629391,100110.0,100100.0,0.012]
[1734067163805,0.54593136,100110.0,100100.0,0.012]
[1734067164613,0.001,100110.0,100100.0,0.78698757]
[1734067164910,0.20921422,100130.0,100120.0,0.049927]
[1734067165120,0.06289872,100130.0,100120.0,1.24473341]
[1734067165409,0.06289872,100130.0,100120.0,1.27483341]
[1734067166109,0.06589872,100130.0,100120.0,1.27583341]
[1734067167811,0.07089872,100130.0,100120.0,1.27583341]
[1734067168122,0.07089872,100130.0,100120.0,1.30593341]
[1734067168712,0.07089872,100130.0,100120.0,1.3159903]
[1734067174821,0.07089872,100130.0,100120.0,1.37888902]
[1734067175812,0.008,100130.0,100120.0,1.37888902]
[1734067176021,0.07089872,100130.0,100120.0,1.37888902]
[1734067177620,0.008,100130.0,100120.0,1.37888902]
[1734067178819,0.008,100130.0,100120.0,1.37850512]
[1734067185127,0.008,100130.0,100120.0,1.3156064]
[1734067185324,0.07089872,100130.0,100120.0,1.37850512]
[1734067185630,0.07089872,100130.0,100120.0,1.3156064]
[1734067186022,0.008,100130.0,100120.0,1.37850512]
[1734067186224,0.07089872,100130.0,100120.0,1.37850512]
[1734067190220,0.07089872,100130.0,100120.0,1.49739636]
[1734067191123,0.07089872,100130.0,100120.0,1.74761446]
[1734067192034,0.008,100130.0,100120.0,1.74761446]
[1734067192425,0.008,100130.0,100120.0,1.74773892]
[1734067192626,0.07089872,100130.0,100120.0,1.74773892]
[1734067193234,0.07089872,100130.0,100120.0,1.86663015]
[1734067194228,0.27985961,100130.0,100120.0,1.86849104]
[1734067197530,0.21696089,100130.0,100120.0,1.86849104]
[1734067205340,0.21696089,100130.0,100120.0,1.93138976]
[1734067205543,0.09755467,100130.0,100120.0,1.57471607]
[1734067205736,0.09755467,100130.0,100120.0,1.99083538]
[1734067206045,0.008,100130.0,100120.0,2.44966943]
[1734067206742,0.09755467,100130.0,100120.0,1.68836285]
[1734067206941,0.008,100130.0,100120.0,2.10448216]
[1734067207241,0.008,100130.0,100120.0,2.4491534]
[1734067211139,0.008,100130.0,100120.0,2.32335596]
[1734067211341,0.008,100130.0,100120.0,1.62546413]
[1734067211737,0.008,100130.0,100120.0,1.57471607]
[1734067213739,0.008,100130.0,100120.0,1.57265472]
[1734067214152,0.008,100130.0,100120.0,1.57266356]
[1734067214448,0.008,100130.0,100120.0,1.93027228]
[1734067218449,0.008,100130.0,100120.0,1.93011321]
[1734067221137,0.008,100130.0,100120.0,1.80431577]
[1734067221338,0.008,100130.0,100120.0,1.93011321]
[1734067222943,0.09755467,100130.0,100120.0,1.92827788]
[1734067223244,0.008,100130.0,100120.0,1.92827788]
[1734067225253,0.008,100130.0,100120.0,1.80248044]
[1734067225449,0.008,100130.0,100120.0,1.92827788]
[1734067226253,0.008,100130.0,100120.0,1.57066916]
[1734067229053,0.008,100130.0,100120.0,1.44487172]
[1734067229261,0.008,100130.0,100120.0,1.57066916]
[1734067230159,0.008,100130.0,100120.0,1.54056916]
[1734067230361,0.008,100130.0,100120.0,2.070259]
[1734067232162,0.008,100130.0,100120.0,2.41423944]
[1734067237969,0.09755467,100130.0,100120.0,2.41423944]
[1734067241266,0.09755467,100130.0,100120.0,2.41283432]
[1734067244180,0.09755467,100130.0,100120.0,2.44353432]
[1734067244471,0.09755467,100130.0,100120.0,2.45117873]
[1734067245076,0.09755467,100130.0,100120.0,2.32538129]
[1734067245376,0.09755467,100130.0,100120.0,2.45116039]
[1734067245579,0.09755467,100130.0,100120.0,2.44837812]
[1734067246568,0.008,100130.0,100120.0,2.98684177]
[1734067248582,0.008,100130.0,100120.0,2.16869925]
[1734067248771,0.008,100130.0,100120.0,2.05512872]
[1734067249382,0.20896089,100140.0,100130.0,0.049922]
[1734067249677,0.08955467,100140.0,100130.0,1.53339836]
[1734067249977,0.08955467,100140.0,100130.0,1.2858575]
[1734067250179,0.08955467,100140.0,100130.0,1.5301938]
[1734067250572,0.08955467,100140.0,100130.0,1.5311938]
[1734067250573,0.09855467,100140.0,100130.0,1.5311938]
[1734067251578,0.09855467,100140.0,100130.0,1.5321938]
[1734067254684,0.09855467,100140.0,100130.0,1.40623591]
[1734067254883,0.09855467,100140.0,100130.0,1.53203335]
[1734067255177,0.09855467,100140.0,100130.0,1.53202809]
[1734067255382,0.09855467,100140.0,100130.0,1.52440728]
[1734067256176,0.009,100140.0,100130.0,1.52440728]
[1734067257685,0.09855467,100140.0,100130.0,1.52440728]
[1734067258580,0.009,100140.0,100130.0,1.52440728]
[1734067261280,0.009,100140.0,100130.0,1.5444995]
[1734067262486,0.009,100140.0,100130.0,1.41870206]
[1734067262690,0.009,100140.0,100130.0,1.5444995]
[1734067264486,0.009,100140.0,100130.0,1.18674994]
[1734067265487,1e-08,100140.0,100130.0,1.30036452]
[1734067265677,1e-08,100140.0,100130.0,2.05693688]
[1734067266085,0.27155952,100160.0,100150.0,0.049912]
[1734067266282,0.27155952,100160.0,100150.0,1.67347708]
[1734067266881,0.27006089,100160.0,100150.0,1.67307129]
[1734067267281,0.27006089,100160.0,100150.0,1.73597001]
[1734067267683,0.20896089,100160.0,100150.0,1.73597001]
[1734067267884,0.09355467,100160.0,100150.0,1.88926055]
[1734067268082,0.09355467,100160.0,100150.0,2.18009356]
[1734067268290,0.004,100160.0,100150.0,2.17985264]
[1734067269286,0.2422658,100180.0,100150.0,1.5867783]
[1734067269485,0.2090658,100180.0,100170.0,1.25094524]
[1734067269693,0.08965958,100180.0,100170.0,1.67294824]
[1734067270282,0.12090428,100190.0,100170.0,1.19202809]
[1734067270485,0.00149806,100190.0,100180.0,1.10385169]
[1734067270788,0.1644,100200.0,100190.0,0.049892]
[1734067270982,0.1644,100200.0,100190.0,0.94633629]
[1734067271503,0.1644,100200.0,100190.0,0.65189459]
[1734067271789,0.30748572,100200.0,100190.0,0.53910387]
[1734067271993,0.78979066,100200.0,100190.0,0.3608]
[1734067272183,0.88959603,100200.0,100190.0,0.3608]
[1734067272384,0.82669731,100200.0,100190.0,0.3608]
[1734067273293,0.82669731,100200.0,100190.0,0.3618]
[1734067273592,0.82669731,100200.0,100190.0,0.411692]
[1734067274781,0.88959603,100200.0,100190.0,0.411692]
[1734067275598,0.82669731,100200.0,100190.0,0.411692]
[1734067275794,0.52669731,100200.0,100190.0,0.411692]
[1734067276585,0.82669731,100200.0,100190.0,0.411692]
[1734067276992,0.52669731,100200.0,100190.0,0.411692]
[1734067280289,0.40729109,100200.0,100190.0,0.411692]
[1734067280589,0.47998975,100200.0,100190.0,0.411692]
[1734067281596,0.89939597,100200.0,100190.0,0.3618]
[1734067285195,0.77359853,100200.0,100190.0,0.3618]
[1734067285402,0.89939597,100200.0,100190.0,0.3618]
[1734067287099,0.59939597,100200.0,100190.0,0.3618]
[1734067289504,0.59939597,100200.0,100190.0,0.001]
[1734067289702,0.96019597,100200.0,100190.0,0.001]
[1734067289912,0.74865375,100200.0,100190.0,0.001]
[1734067290299,1.04865375,100200.0,100190.0,0.001]
[1734067291391,0.049892,100190.0,100180.0,0.3608]
[1734067291595,0.23209517,100190.0,100180.0,0.3608]
[1734067291800,0.049897,100180.0,100170.0,0.58900387]
[1734067291998,0.17459572,100180.0,100170.0,0.4107]
[1734067292306,0.049902,100170.0,100160.0,0.89274582]
[1734067292499,0.11280072,100170.0,100160.0,0.6321385]
[1734067292699,0.11280072,100170.0,100160.0,0.62230733]
[1734067293298,0.11280072,100170.0,100160.0,0.86004582]
[1734067293493,0.11280072,100170.0,100160.0,0.62230733]
[1734067293706,0.11280072,100170.0,100160.0,0.63130733]
[1734067294303,0.23210517,100170.0,100160.0,0.63130733]
[1734067296701,0.23210517,100170.0,100160.0,0.58140133]
[1734067297510,0.38136295,100170.0,100160.0,0.40309746]
[1734067298307,0.39147952,100170.0,100160.0,0.40509746]
[1734067298911,0.49131479,100170.0,100160.0,0.40509746]
[1734067299311,0.34205701,100170.0,100160.0,0.40509746]
[1734067299512,0.49131479,100170.0,100160.0,0.37329746]
[1734067300013,0.85211479,100170.0,100160.0,0.01249746]
[1734067300511,0.73281034,100170.0,100160.0,0.01249746]
[1734067301101,0.91191968,100170.0,100160.0,0.01249746]
[1734067301303,0.73281034,100170.0,100160.0,0.01249746]
[1734067301505,0.79570906,100170.0,100160.0,0.01249746]
[1734067301708,1.2748184,100170.0,100160.0,0.011]
[1734067301911,0.049912,100150.0,100140.0,0.68491987]
[1734067302111,0.11281072,100150.0,100140.0,0.68491987]
[1734067303018,0.11281072,100150.0,100140.0,0.69091987]
[1734067303316,0.11281072,100150.0,100140.0,0.512616]
[1734067303512,0.11281072,100150.0,100140.0,0.521616]
[1734067304421,0.11281072,100150.0,100140.0,0.506616]
[1734067304620,0.11281072,100150.0,100140.0,0.519616]
[1734067305915,0.11281072,100150.0,100140.0,0.4697]
[1734067306712,0.11281072,100150.0,100140.0,0.4371]
[1734067307113,0.11281072,100150.0,100140.0,0.0763]
[1734067311926,0.12283509,100150.0,100140.0,0.0763]
[1734067312825,0.22269029,100150.0,100140.0,0.0763]
[1734067313519,0.28558901,100150.0,100140.0,0.0441]
[1734067314124,0.64638901,100150.0,100140.0,0.013]
[1734067314314,1.06579008,100150.0,100140.0,0.013]
[1734067319033,0.76579008,100150.0,100140.0,0.013]
[1734067320329,0.91504786,100150.0,100140.0,0.013]
[1734067322229,0.79564679,100150.0,100140.0,0.013]
[1734067324638,0.66984935,100150.0,100140.0,0.013]
[1734067324842,0.79564679,100150.0,100140.0,0.013]
[1734067325138,0.049917,100140.0,100120.0,0.80784236]
[1734067325338,0.29521842,100130.0,100120.0,0.57010387]
[1734067325634,0.2323197,100130.0,100120.0,0.57010387]
[1734067325825,0.33218986,100130.0,100120.0,0.20930387]
[1734067326532,0.33218986,100130.0,100120.0,0.038]
[1734067326728,0.33218986,100130.0,100120.0,0.21630387]
[1734067326927,0.33318986,100130.0,100120.0,0.22530387]
[1734067327326,0.33318986,100130.0,100120.0,0.22330387]
[1734067327527,0.39608858,100130.0,100120.0,0.22330387]
[1734067327732,0.54534636,100130.0,100120.0,0.045]
[1734067329127,0.54534636,100130.0,100120.0,0.014]
[1734067329327,0.96575672,100130.0,100120.0,0.014]
[1734067329732,0.81649894,100130.0,100120.0,0.014]
[1734067330436,0.82649894,100130.0,100120.0,0.001]
[1734067331134,0.049932,100110.0,100100.0,0.63320387]
[1734067331334,0.2323563,100110.0,100100.0,0.63320387]
[1734067331546,0.2323563,100110.0,100100.0,0.4549]
[1734067332335,0.29525502,100110.0,100100.0,0.4549]
[1734067332540,0.39515013,100110.0,100100.0,0.0633]
[1734067333145,0.39515013,100110.0,100100.0,0.0643]
[1734067333538,0.39615013,100110.0,100100.0,0.0733]
[1734067336553,0.39615013,100110.0,100100.0,0.0421]
[1734067336753,0.75695013,100110.0,100100.0,0.0421]
[1734067336950,0.39615013,100110.0,100100.0,0.0421]
[1734067337644,0.75695013,100110.0,100100.0,0.0421]
[1734067338045,0.76688358,100110.0,100100.0,0.0421]
[1734067340154,0.76688358,100110.0,100100.0,0.01]
[1734067341158,0.40608358,100110.0,100100.0,0.3708]
[1734067341653,0.40608358,100110.0,100100.0,0.4041]
[1734067342047,0.40608358,100110.0,100100.0,0.0433]
[1734067342248,0.286558,100110.0,100100.0,0.0433]
[1734067342952,0.40608358,100110.0,100100.0,0.0433]
[1734067343448,0.40608358,100110.0,100100.0,0.01]
[1734067344144,0.42605565,100110.0,100100.0,0.01]
[1734067348760,0.30025821,100110.0,100100.0,0.01]
[1734067349054,0.42605565,100110.0,100100.0,0.01]
[1734067353466,0.57546263,100110.0,100100.0,0.01]
[1734067354359,0.45593705,100110.0,100100.0,0.01]
[1734067355468,0.45593705,100110.0,100100.0,0.18830387]
[1734067357462,0.63504639,100110.0,100100.0,0.18830387]
[1734067358266,0.45593705,100110.0,100100.0,0.18830387]
[1734067358468,0.63504639,100110.0,100100.0,0.18830387]
[1734067359363,0.48563941,100110.0,100100.0,0.42604236]
[1734067363666,0.66733007,100110.0,100100.0,0.18830387]
[1734067366469,0.73022879,100110.0,100090.0,0.63023849]
[1734067366669,0.82774882,100100.0,100090.0,0.41725681]
[1734067366872,0.90639405,100100.0,100090.0,0.17951832]
[1734067367174,0.049942,100090.0,100080.0,0.23784112]
[1734067367375,0.50524013,100090.0,100080.0,0.29482826]
[1734067367874,0.049957,100060.0,100050.0,0.52093151]
[1734067368076,0.29556043,100060.0,100050.0,0.74267954]
[1734067368379,0.23266171,100060.0,100050.0,0.1392519]
[1734067368672,0.23275544,100060.0,100050.0,0.1392519]
[1734067369469,0.11294945,100060.0,100050.0,0.1392519]
[1734067370177,0.11394945,100060.0,100050.0,0.1462519]
[1734067370471,0.11394945,100060.0,100050.0,0.08926]
[1734067370672,0.11394945,100060.0,100050.0,0.45006]
[1734067370880,0.11494945,100060.0,100050.0,0.45006]
[1734067372975,0.11494945,100060.0,100050.0,0.48216]
[1734067374478,0.11494945,100060.0,100050.0,1.27216]
[1734067378677,0.11494945,100060.0,100050.0,0.48216]
[1734067379076,0.11494945,100060.0,100050.0,1.27216]
[1734067379673,0.11494945,100060.0,100050.0,0.48216]
[1734067381467,0.11494945,100060.0,100050.0,0.54505872]
[1734067382576,0.11494945,100060.0,100050.0,0.48216]
[1734067386377,0.11494945,100060.0,100050.0,0.12136]
[1734067386585,0.11494945,100060.0,100050.0,0.48216]
[1734067387074,0.11494945,100060.0,100050.0,0.12136]
[1734067387287,0.11494945,100060.0,100050.0,0.48216]
[1734067393483,0.11494945,100060.0,100050.0,0.75003635]
[1734067393883,0.06499245,100060.0,100050.0,0.75003635]
[1734067394190,0.00209373,100060.0,100050.0,1.22625373]
[1734067394490,0.00209373,100060.0,100050.0,2.26878904]
[1734067394784,0.68300676,100080.0,100050.0,1.84504929]
[1734067394993,0.68300676,100080.0,100070.0,0.049952]
[1734067395483,0.68300676,100080.0,100070.0,0.114352]
[1734067395891,0.68500676,100080.0,100070.0,0.114352]
[1734067396079,0.68500676,100080.0,100070.0,0.17725072]
[1734067396482,0.68500676,100080.0,100070.0,0.44298848]
[1734067396682,0.59545271,100080.0,100070.0,0.38008976]
[1734067396883,0.59545271,100080.0,100070.0,0.44298848]
[1734067397394,0.59445271,100080.0,100070.0,0.38308976]
[1734067397584,0.59445271,100080.0,100070.0,0.39108976]
[1734067397782,0.59445271,100080.0,100070.0,0.69005697]
[1734067399095,0.6842593,100080.0,100070.0,0.69005697]
[1734067399591,0.74715802,100080.0,100070.0,0.69005697]
[1734067399889,0.74715802,100080.0,100070.0,0.62565697]
[1734067400096,0.91188307,100080.0,100070.0,0.62565697]
[1734067400287,0.94198307,100080.0,100070.0,0.35991921]
[1734067400480,0.94196327,100080.0,100070.0,0.35991921]
[1734067401090,1.00193396,100080.0,100070.0,0.060952]
[1734067401686,0.85217648,100080.0,100070.0,0.060952]
[1734067402493,1.00193396,100080.0,100070.0,0.060952]
[1734067403698,1.00193396,100080.0,100070.0,0.011]
[1734067409404,0.64113396,100080.0,100070.0,0.011]
[1734067409609,1.00193396,100080.0,100070.0,0.011]
[1734067409899,0.88212797,100080.0,100070.0,0.011]
[1734067410700,1.12473567,100080.0,100070.0,0.011]
[1734067410911,0.97497819,100080.0,100070.0,0.011]
[1734067415612,0.049957,100060.0,100050.0,0.65743288]
[1734067415807,0.86885829,100060.0,100040.0,0.70739988]
[1734067416111,0.62636876,100050.0,100040.0,0.62620764]
[1734067416318,0.56347004,100050.0,100040.0,0.62620764]
[1734067416516,0.68320565,100050.0,100040.0,0.62620764]
[1734067417213,0.56347004,100050.0,100040.0,0.35537679]
[1734067417418,0.56347004,100050.0,100040.0,0.62698591]
[1734067418413,0.56447004,100050.0,100040.0,0.62698591]
[1734067418814,0.56447004,100050.0,100040.0,0.67695291]
[1734067419216,0.56447004,100050.0,100040.0,0.053967]
[1734067421117,0.47466072,100050.0,100040.0,0.053967]
[1734067421426,0.56447004,100050.0,100040.0,0.053967]
[1734067422115,0.47466072,100050.0,100040.0,0.053967]
[1734067423916,0.56447004,100050.0,100040.0,0.053967]
[1734067425522,0.56447004,100050.0,100040.0,0.004]
[1734067425727,0.72732378,100050.0,100040.0,0.004]
[1734067426118,0.049972,100030.0,100020.0,0.77114221]